Cogmind - Beta 11.1 @@@ ROGUE MODE // 2022.09.14 @ 19:41:08 Player: Flerik Result: Destroyed by D-53 Grenadier with Mini Grenade Launcher Performance ------------- Evolutions (0) 0 Regions Visited (2) 400 Robots Destroyed (13) 65 Value Destroyed (239) 239 Prototype IDs (2) 40 Alien Tech Used (0) 0 Bonus (0) 0 TOTAL SCORE: 744 Bonus ------- None Cogmind --------- Core Integrity 0/250 Matter 300/300 Energy 99/100 System Corruption 1% Temperature Cool (0) Movement Core (100) Ox1 Location -10/Mines Parts ------- > --- POWER (1) -------- (None) > --- PROPULSION (2) --- (None) > --- UTILITY (2) ------ Small Storage Unit Improved Terrain Scanner > --- WEAPON (2) ------- (None) > --- INVENTORY (8) ---- Ion Engine Ion Engine Flight Unit Flight Unit Light Assault Rifle Grenade Launcher Grenade Launcher Peak State ------------ > --- POWER ------------ Ion Engine > --- PROPULSION ------- Aluminum Leg Aluminum Leg > --- UTILITY ---------- Small Storage Unit Improved Terrain Scanner > --- WEAPON ----------- Medium Laser Medium Laser > --- INVENTORY -------- Ion Engine Light Assault Rifle [Rating: 9] Favorites ----------- Power Ion Engine Engine Ion Engine Propulsion Aluminum Leg Leg Aluminum Leg Utility Small Storage Unit Device Improved Terrain Scanner Storage Small Storage Unit Weapon Medium Laser Energy Gun Medium Laser Ballistic Gun Light Assault Rifle Special Weapon Welding Torch Build | -11 -10 -10 ------- Run | Scr Mat Min Slots Evolved . | . . . Power . | . . . Propulsion . | . . . Utility . | . . . Weapon . | . . . Parts Attached 11 | 8 3 . Power 1 | 1 . . Engine 1 | 1 . . Core . | . . . Reactor . | . . . Propulsion 2 | 2 . . Treads . | . . . Leg 2 | 2 . . Wheel . | . . . Hover . | . . . Flight . | . . . Utility 2 | 2 . . Device 1 | 1 . . Storage 1 | 1 . . Processor . | . . . Hackware . | . . . Protection . | . . . Artifact . | . . . Weapon 6 | 3 3 . Energy Gun 3 | 2 1 . Energy Cannon . | . . . Ballistic Gun 1 | 1 . . Ballistic Cannon . | . . . Launcher . | . . . Special Weapon 2 | . 2 . Impact Weapon . | . . . Slashing Weapon . | . . . Piercing Weapon . | . . . Special Melee Weapon . | . . . Unidentified Prototypes . | . . . Parts Lost 6 | . 1 5 Power 1 | . . 1 Propulsion 2 | . . 2 Utility . | . . . Weapon 3 | . 1 2 Highest Loss Streak 5 | . 1 5 To Critical Strikes . | . . . Average Slot Usage (%) 99 | . 99 96 Engine 14 | . 14 14 Leg 27 | . 28 24 Device 14 | . 14 14 Storage 14 | . 14 14 Energy Gun 24 | . 24 28 Special Weapon 3 | . 3 . Naked Turns . | . . . Heaviest Build 15 | 15 15 15 Greatest Support 20 | 20 20 20 Greatest Overweight (x) 1 | 1 . 1 Average Overweight (x) . | . . . Largest Inventory Capacity 8 | 8 8 8 Average Capacity 7 | 7 8 8 Most Carried 7 | 3 7 7 Average Carried 4 | 2 5 6 Final Capacity 8 | 8 8 8 Final Carried 7 | 3 6 7 Class Distribution -------------------- 100% | Mutant Dominant Class ---------------- Mutant | -10/Materials Mutant | -10/Mines Resources | -11 -10 -10 ----------- Run | Scr Mat Min Matter Collected 305 | 280 25 . Remotely . | . . . Salvage Created 357 | 147 166 44 Parts 25 | 12 7 6 Haulers Intercepted . | . . . Recyclers Shooed . | . . . Parts Field Recycled . | . . . Retrieved Matter . | . . . Parts Self-Destructed . | . . . Prevented . | . . . Kills | -11 -10 -10 ------- Run | Scr Mat Min Combat Hostiles Destroyed 7 | . 4 3 Guns 7 | . 4 3 Classes Destroyed 5 | 2 2 1 Tunneler 4 | 4 . . Recycler 1 | 1 . . Watcher 1 | . 1 . Swarmer 3 | . . 3 Grunt 4 | . 4 . Best Kill Streak 4 | 4 2 3 Combat Bots Only 3 | . 2 3 Max Kills in Single Turn 2 | 1 1 2 Gunslinging 1 | . . 1 Exploded . | . . . Melee . | . . . Uniques/NPCs Destroyed . | . . . Combat | -11 -10 -10 -------- Run | Scr Mat Min Damage Taken 738 | . 368 370 Core 288 | . 111 177 Absorbed by Shields . | . . . Core Remaining (%) 100 | 100 . . Volleys Fired 47 | 11 30 6 Largest 2 | 2 2 2 Hottest 100 | 100 100 100 Shots Fired 88 | 22 54 12 Gun 82 | 22 48 12 Cannon . | . . . Launcher . | . . . Special 6 | . 6 . Kinetic . | . . . Thermal 88 | 22 54 12 Explosive . | . . . Electromagnetic . | . . . Robot Hit Streak 12 | 10 12 3 Robot Miss Streak 4 | 2 4 2 Penetration Max . | . . . Secondary Targets 1 | . . 1 Max Gunslinging Chain 1 | . . 1 Shots Hit Robots 54 | 17 31 6 Core Hits 23 | 6 13 4 Critical Kills . | . . . Critical Parts Destroyed . | . . . Critical Strikes 2 | . 1 1 Burn 2 | . 1 1 Melee Attacks . | . . . Impact . | . . . Slashing . | . . . Piercing . | . . . Sneak Attacks . | . . . Combat Hostiles . | . . . Follow-up Attacks . | . . . Damage Inflicted 703 | 201 429 73 Guns 598 | 201 324 73 Cannons . | . . . Explosions 92 | . 92 . Melee . | . . . Ramming . | . . . Kinetic . | . . . Thermal 611 | 201 337 73 Explosive . | . . . Electromagnetic 92 | . 92 . Impact . | . . . Slashing . | . . . Piercing . | . . . Highest Corruption 1 | . 1 1 Average Corruption 1 | . 1 1 Corruption Purged . | . . . Corruption Blocked . | . . . Effects 2 | . 2 . Message Errors 1 | . 1 . Data Loss (minor) 1 | . 1 . Overload Shots . | . . . Overflow Damage 34 | . 34 . Projectiles . | . . . Explosions 34 | . 34 . Melee . | . . . Knockbacks . | . . . Impact . | . . . Kinetic . | . . . Secondary . | . . . Self-Inflicted Damage 36 | . 36 . Shots 1 | . 1 . Rammed . | . . . Targets Rammed . | . . . Kicked . | . . . Crushed . | . . . Highest Temperature 225 | 195 225 195 Average Temperature 79 | 92 72 91 Received Heat Transfer 200 | . 180 20 Siege Activations . | . . . Robots Corrupted . | . . . Combat Hostiles . | . . . Parts Fried . | . . . Impact Corruptions . | . . . Robots Melted . | . . . Combat Hostiles . | . . . Parts Melted 4 | . 4 . Heat Transferred 2049 | 592 1161 296 Parts Sabotaged . | . . . Parts Stolen . | . . . Parts Stripped . | . . . Power Chain Reactions . | . . . Missiles Intercepted . | . . . Alert | -11 -10 -10 ------- Run | Scr Mat Min Peak Influence 210 | 25 210 77 Initial 16 | . 16 7 Average 75 | 9 102 50 Maximum Alert Level 1 | . 1 . Low Security (%) 99 | 100 99 100 Level 1 . | . . . Level 2 . | . . . Level 3 . | . . . Level 4 . | . . . Level 5 . | . . . High Security . | . . . Max Security . | . . . Squads Dispatched 2 | . 2 . Investigation . | . . . Extermination . | . . . Reinforcement 2 | . 2 . Assault . | . . . Garrison . | . . . Intercept . | . . . Searches Triggered . | . . . Construction Impeded . | . . . Haulers Reinforced . | . . . Active Scanning Responses . | . . . Cargo Convoy Interrupts . | . . . Stealth | -11 -10 -10 --------- Run | Scr Mat Min Distress Signals 1 | . 1 . Communications Jammed . | . . . Distress Signals . | . . . Times Spotted 25 | . 15 10 Peak Tracking Total 7 | . 3 7 Tactical Retreats . | . . . Traps | -11 -10 -10 ------- Run | Scr Mat Min Traps Triggered 2 | . 2 . Indirectly . | . . . Trap Hack Attempts . | . . . Triggered . | . . . Disarmed . | . . . Reprogrammed . | . . . Reused . | . . . Traps Extracted . | . . . Installed . | . . . Triggered . | . . . Machines | -11 -10 -10 ---------- Run | Scr Mat Min Machines Disabled 1 | . 1 . Max in Single Turn 1 | . 1 . Machines Sabotaged . | . . . Garrisons Compromised . | . . . Overloaded Fab Kills . | . . . Hacking | -11 -10 -10 --------- Run | Scr Mat Min Machines Accessed 2 | . 2 . Terminals 2 | . 2 . Fabricators . | . . . Repair Stations . | . . . Recycling Units . | . . . Scanalyzers . | . . . Garrison Access . | . . . Total Hacks 8 | . 8 . Successful 6 | . 6 . Failed 2 | . 2 . Catastrophic . | . . . Database Lockouts . | . . . Manual 1 | . 1 . Terminals 8 | . 8 . Fabricators . | . . . Repair Stations . | . . . Recycling Units . | . . . Scanalyzers . | . . . Garrison Access . | . . . Terminal Hacks 6 | . 6 . Prototype ID Bank 1 | . 1 . Dispatch Records 1 | . 1 . Investigation Status 1 | . 1 . Assault Status 1 | . 1 . Recall Investigation 1 | . 1 . Zone Layout 1 | . 1 . Fabricator Hacks . | . . . Repair Station Hacks . | . . . Recycling Unit Hacks . | . . . Scanalyzer . | . . . Garrison Access Hacks . | . . . Unauthorized Hacks . | . . . Terminals . | . . . Fabricators . | . . . Repair Stations . | . . . Recycling Units . | . . . Scanalyzers . | . . . Garrison Access . | . . . Data Cores Recovered . | . . . Used . | . . . Hacking Detections 2 | . 2 . Full Trace Events . | . . . Feedback Events . | . . . Feedback Blocked . | . . . Robot Schematics Acquired . | . . . Robots Built . | . . . Authchips . | . . . Time . | . . . Total Robot Build Rating . | . . . Part Schematics Acquired . | . . . Parts Built . | . . . Authchips . | . . . Time . | . . . Total Part Build Rating . | . . . Parts Repaired . | . . . Time . | . . . Parts Recycled . | . . . Recycled Matter . | . . . Retrieved Matter . | . . . Retrieved Components . | . . . Parts Scanalyzed . | . . . Part Schematics Acquired . | . . . Parts Damaged . | . . . Bothacking | -11 -10 -10 ------------ Run | Scr Mat Min Used RIF Installer . | . . . Robots Hacked . | . . . Non-combat . | . . . Combat . | . . . Robot Hacks Applied . | . . . Relay Couplers Released . | . . . Fabnet Peak Effective % . | . . . Robots Rewired . | . . . Allies Hacked . | . . . Hacks Repelled . | . . . Allies | -11 -10 -10 -------- Run | Scr Mat Min Total Allies . | . . . Largest Group . | . . . Highest-Rated Group . | . . . Highest-Rated Ally . | . . . Total Orders . | . . . Ally Attacks . | . . . Total Damage . | . . . Kills . | . . . Allies Corrupted . | . . . Allies Melted . | . . . Intel | -11 -10 -10 ------- Run | Scr Mat Min Robot Analysis Total . | . . . Derelict Logs Recovered 1 | . . 1 Drone Launches . | . . . Drone Recoveries . | . . . Exploration | -11 -10 -10 ------------- Run | Scr Mat Min Turns Passed 723 | 188 498 37 Spaces Moved 457 | 108 335 14 Core 11 | 9 . 2 Treads . | . . . Legs 446 | 99 335 12 Wheels . | . . . Hover . | . . . Flight . | . . . Fastest Speed 50 | 50 120 100 Average Speed 118 | 115 120 122 Slowest Speed 190 | 120 120 190 Overloaded Moves . | . . . Propulsion Burnouts . | . . . Robots Hopped . | . . . Cave-ins Triggered . | . . . Exploration Rate (%) 24 | 4 59 10 Regions Visited 2 Branch Regions 1 Pre-discovered Areas . | . . . Known Exits Taken . | . . . Unknown Exits Taken 2 | 1 1 . Scrap Searched . | . . . Spaces Dug . | . . . Terrain Destroyed . | . . . Melee . | . . . Projectile . | . . . AOE . | . . . Terrain Rammed . | . . . Walls Destroyed . | . . . Machines Disabled . | . . . Actions | -11 -10 -10 --------- Run | Scr Mat Min Total 544 | 146 375 23 Wait 20 | 16 4 . Move 455 | 107 334 14 Hop . | . . . Pick Up 9 | 3 4 2 Fast Attach 8 | 7 1 . Attach 2 | 1 1 . Detach 1 | 1 . . Swap 1 | . 1 . Drop 1 | . . 1 Fire 47 | 11 30 6 Melee . | . . . Ram . | . . . Kick . | . . . Crush . | . . . Escape Stasis . | . . . Rewire . | . . . Trap . | . . . Miscellaneous . | . . . Route ------- -11/Scrapyard -10/Materials (discovered 2 exits: [Mat] / [*Min]) -10/Mines History --------- Turn | Location | Event 18 | -11/Scrapyard | Discovered new exit (range 16) 189 | -11/Scrapyard | Entered Materials 304 | -10/Materials | Build established: Mutant 651 | -10/Materials | Discovered new exit (range 8) 667 | -10/Materials | Discovered new exit (range 14) 687 | -10/Materials | Entered Mines 691 | -10/Mines | Learned 2 Materials zone layouts 692 | -10/Mines | Assembled infested the area 718 | -10/Mines | Core integrity fell below 50% 724 | -10/Mines | Core integrity fell below 20% 724 | -10/Mines | Destroyed by D-53 Grenadier with Mini Grenade Launcher Last Messages --------------- 00699_ S-10 Pest suffers critical hit (Burn). 00703_ S-10 Pest heat damages Flight Unit. 00705_ S-10 Pest destroyed. 00708_ Dropped Seismic Detector. 00710_ Acquired Flight Unit. 00711_ as-52564 destroyed. 00711_ as-29205 destroyed. 00714_ Acquired Flight Unit. 00716_ The unstable cave ceiling collapses. 00718_ as-39177 destroyed. 00719_ The unstable cave ceiling collapses. 00719_ Aluminum Leg destroyed. 00720_ as-54283 destroyed. 00720_ Med. Laser destroyed. 00720_ Ion Engine destroyed. 00721_ Med. Laser destroyed. 00722_ as-03602 destroyed. 00722_ as-32368 destroyed. 00723_ Aluminum Leg destroyed. 00723_ as-44933 destroyed. Map ----- +----------------------------------------------------+ | ???????????????????????????????????????????? | | ???????????????????????????????????????????? | | ???????????????????????????????????????????? | | ???????????????????????????????????????????? | | ???????????????????????????????????????????? | | ???????????????????????????????????????????? | | ???????????????????????????????????????????? | | ???????????????????????????????????????????? | | ???????????????????????????????????????????? | | ???????????????????????????????????????????? | | ???????????????????????? ???????????????? | | ?????????????????????? ???????????????? | | ???????????????????? ???????????????? | | ?????????????????? ???????????????? | | ?????????????????? # ?? ? ??????????? | | ?????????????????? # ???????????????? | | ??????????????????? d #????? ??#?#????? | | ????????????????????# #??? ????? ##???? | | ?????????????????????? ##???????? #??#? | | ??????????????????????? ####?? ? #??#? | | ???????????????????????##d # ###? #????? | | ??????????????????????## # #?????? | | ?????????????????????## ##????? | | ????????????????????## % ##???? | | ??????????????????### % #???? | | ?????????????????## *%*@ #???? | | ?????????????????# =## ##???? | | ???????????????## ???# ###????? | | ????????????????# ????? ####?????#? | | ?????????????????????? ##### # ###????#????? | | ????????????????????? #????? ?????????? | | ???????????????????? ???????""" ?????#???? | | ??????????????????? ????????""" #????????? | | ????????????????? ??????#??""" #????????? | | ????????????????##?????????? #????????? | | ????????????????????????????? #????????? | | ?????????????????????????#?#???####????????? | | ???????????????????????????????????????????? | | ?????????????????????#?????????#???????????? | | ?????????????????????????????????#?????????? | | ???????????????????????????????????????????? | | ???????????????????????????????????????????? | | ???????????????????????????????????????????? | | ???????????????????????????????????????????? | | ???????????????????????????????????????????? | | ???????????????????????????????????????????? | | ???????????????????????????????????????????? | | ???????????????????????????????????????????? | | ???????????????????????????????????????????? | | ???????????????????????????????????????????? | +----------------------------------------------------+ Best States ------------- Heat Dissipation 25 Energy Generation 10 Energy Capacity 250 Matter Stores 300 Matter Capacity 300 Sight Range 16 Terrain Scan Range 16 Terrain Scan Density 10 Evasion (%) 55 Item Schematics ----------------- None Robot Schematics ------------------ None Fabricated ------------ Nothing Alien Tech Used ----------------- None Achievements -------------- None Challenges ------------ None Game ------ Seed MolecularGatlingNanosword Manual? 0 Play Time 00:06:00 Cumulative 24.0 hours Start 2022.09.14 @ 19:32:21 End 2022.09.14 @ 19:41:08 Sessions 1 Manual Loads 0 Difficulty Rogue Special Mode None Game No. 38 Rogue 37 Adventurer 1 Explorer 0 Win Type - Total 1 Types 1/0/0/0/0/0/0/0/0 Lore% 26 Gallery% 31 Achievement% 27 Wizard Run 0 Options --------- ASCII 0 Keyboard 0 Movement Numpad Keybinds 0 Fullscreen 1 Font 18/SmallcapsGlow Map View 76x50 Tactical HUD 1 Map Filters NONE Filters NONE Steam 1 RUN: 8d01e2d3-58b1-4558-9eec-eeeae8beb41a